Cogmind - Beta 12 @@@ ROGUE MODE // 2023.04.24 @ 00:17:54 Player: Red Box Result: Destroyed by H-55 Commando with Gauss Rifle Performance ------------- Evolutions (1) 500 Regions Visited (6) 1200 Robots Destroyed (130) 650 Value Destroyed (1969) 1969 Prototype IDs (7) 140 Alien Tech Used (0) 0 Bonus (283) 283 TOTAL SCORE: 4742 Bonus ------- High Alert Combat Kills 119 Follower Combat Kills 183 Friendly Fire -19 Cogmind --------- Core Integrity 0/400 Matter 187/300 Energy 278/280 System Corruption 0% Temperature Cool (0) Movement Rolling (135) Ox3 Location -8/Mines Parts ------- > --- POWER (1) -------- Heavy Ion Engine > --- PROPULSION (2) --- Wheel Compact Wheel > --- UTILITY (4) ------ Improved Heat Sink Huge Storage Unit Advanced Targeting Computer Layered Light Armor Plating > --- WEAPON (2) ------- Advanced Beam Cannon Heavy Missile Launcher > --- INVENTORY (25) --- Heavy Ion Engine Cooled Ion Engine Light Treads Light Treads Wheel Compact Wheel Compact Wheel Large Battery (200) High-capacity Matter Pod (200) Recoil Stabilizer Dynamic Insulation System Improved Trap Extractor (3/6 Shock) Bomb Drone Bay (16/16) Arc Projector Light EM Pulse Cannon Advanced Beam Cannon Plasma Cannon Gauss Rifle Gauss Rifle Improved Light Cannon Improved Light Cannon Flak Cannon Improved Datajack Ripper Peak State ------------ > --- POWER ------------ Heavy Ion Engine > --- PROPULSION ------- Wheel Compact Wheel > --- UTILITY ---------- Huge Storage Unit Advanced Targeting Computer Bomb Drone Bay > --- WEAPON ----------- Advanced Beam Cannon Advanced Beam Cannon > --- INVENTORY -------- Heavy Ion Engine Cooled Ion Engine Light Treads Light Treads Wheel Wheel Compact Wheel Compact Wheel Large Battery High-capacity Matter Pod Layered Light Armor Plating Dynamic Insulation System Improved Trap Extractor Arc Projector Light EM Pulse Cannon Plasma Cannon Gauss Rifle Improved Light Cannon Improved Light Cannon Improved Light Cannon Heavy Missile Launcher Improved Datajack Ripper [Rating: 34] Favorites ----------- Power Ion Engine Engine Ion Engine Propulsion Compact Wheel Treads Light Treads Leg Aluminum Leg Wheel Compact Wheel Utility Huge Storage Unit Device Improved Terrain Scanner Storage Huge Storage Unit Processor Advanced Targeting Computer Hackware Hacking Suite Protection Light Armor Plating Weapon EM Pulse Gun Energy Gun EM Pulse Gun Energy Cannon Advanced Beam Cannon Ballistic Gun High-powered Shotgun Ballistic Cannon Improved Light Cannon Launcher Heavy Missile Launcher Impact Weapon Heavy Hammer Build | -11 -10 -10 -9 -9 -9 -8 ------- Run | Jun Mat Min Mat Min Exi Min Slots Evolved 2 | . . . 2 . . . Power . | . . . . . . . Propulsion . | . . . . . . . Utility 2 | . . . 2 . . . Weapon . | . . . . . . . Parts Attached 87 | 7 20 7 33 12 3 5 Power 8 | 1 . . 7 . . . Engine 8 | 1 . . 7 . . . Core . | . . . . . . . Reactor . | . . . . . . . Propulsion 17 | 2 4 4 6 . . 1 Treads 1 | . . . 1 . . . Leg 2 | 2 . . . . . . Wheel 14 | . 4 4 5 . . 1 Hover . | . . . . . . . Flight . | . . . . . . . Utility 26 | 2 3 1 10 6 3 1 Device 16 | 1 1 . 6 6 2 . Storage 3 | 1 2 . . . . . Processor 1 | . . . 1 . . . Hackware 1 | . . 1 . . . . Protection 5 | . . . 3 . 1 1 Artifact . | . . . . . . . Weapon 36 | 2 13 2 10 6 . 3 Energy Gun 11 | 1 7 . 3 . . . Energy Cannon 3 | . . . . 2 . 1 Ballistic Gun 4 | 1 . . 3 . . . Ballistic Cannon 8 | . 2 1 2 3 . . Launcher 3 | . . 1 . . . 2 Special Weapon . | . . . . . . . Impact Weapon 7 | . 4 . 2 1 . . Slashing Weapon . | . . . . . . . Piercing Weapon . | . . . . . . . Special Melee Weapon . | . . . . . . . Unidentified Prototypes 2 | . . . 1 . 1 . Corrupted Parts 1 | . . 1 . . . . System Corruption 1 | . . 1 . . . . Parts Lost 14 | . 1 1 10 . . 2 Power 3 | . . . 3 . . . Propulsion 6 | . . 1 4 . . 1 Utility 3 | . . . 2 . . 1 Weapon 2 | . 1 . 1 . . . Highest Loss Streak 3 | . 1 1 3 . . 1 To Critical Strikes . | . . . . . . . Average Slot Usage (%) 99 | . 99 99 98 99 100 99 Engine 12 | . 14 14 10 11 11 11 Treads 1 | . . . 4 . . . Wheel 23 | . 26 27 17 22 22 21 Device 13 | . 14 13 12 10 11 11 Storage 12 | . 14 14 11 11 11 11 Processor 4 | . . . 9 11 11 11 Hackware 1 | . . . 3 . . . Protection 3 | . . . 6 11 11 11 Energy Gun 10 | . 16 . 7 . . . Energy Cannon 3 | . . . . 20 22 19 Ballistic Gun 2 | . . . 7 . . . Ballistic Cannon 2 | . . 27 5 . . . Impact Weapon 5 | . 10 . 2 . . . Naked Turns . | . . . . . . . Heaviest Build 104 | 15 94 94 98 104 100 104 Greatest Support 32 | 20 32 32 26 26 26 26 Greatest Overweight (x) 9 | . 2 9 9 3 3 3 Average Overweight (x) 2 | . 1 3 4 3 3 3 Largest Inventory Capacity 25 | 8 25 25 25 25 25 25 Average Capacity 24 | 7 23 25 25 25 25 25 Most Carried 25 | 8 24 25 25 25 25 25 Average Carried 22 | 6 21 22 24 24 24 24 Final Capacity 25 | 8 25 25 25 25 25 25 Final Carried 25 | 8 22 25 25 25 25 25 Class Distribution -------------------- 89% | Mutant 10% | Scavenger-Mutant Dominant Class ---------------- Mutant | -10/Materials Mutant | -10/Mines Mutant | -9/Materials Mutant | -9/Mines Mutant | -9/Exiles Mutant | -8/Mines Resources | -11 -10 -10 -9 -9 -9 -8 ----------- Run | Jun Mat Min Mat Min Exi Min Matter Collected 1682 | 306 371 105 739 119 . 42 Remotely . | . . . . . . . Salvage Created 9072 | 182 7649 24 937 57 . 223 Parts 599 | 11 499 1 67 5 . 16 Haulers Intercepted 6 | . 2 . 4 . . . Recyclers Shooed 4 | . 3 . 1 . . . Parts Field Recycled . | . . . . . . . Retrieved Matter . | . . . . . . . Parts Self-Destructed . | . . . . . . . Prevented . | . . . . . . . Kills | -11 -10 -10 -9 -9 -9 -8 ------- Run | Jun Mat Min Mat Min Exi Min Combat Hostiles Destroyed 45 | . 7 2 24 4 . 8 Melee 2 | . . . 2 . . . Guns 9 | . 4 . 5 . . . Cannons 19 | . . . 14 4 . 1 AOE 8 | . . 2 . . . 6 Classes Destroyed 11 | 2 6 1 1 . . 1 Worker 178 | . 175 1 1 . . 1 Builder 103 | . 103 . . . . . Tunneler 8 | 5 2 . . . . 1 Hauler 6 | . 2 . 4 . . . Recycler 19 | 1 17 . . . . 1 Operator 1 | . 1 . . . . . Watcher 8 | . 3 . 5 . . . Swarmer 19 | . . 2 9 4 . 4 Grunt 17 | . 7 . 7 . . 3 Sentry 8 | . . . 8 . . . Hunter 1 | . . . . . . 1 Best Kill Streak 16 | 2 16 3 4 4 . 7 Combat Bots Only 4 | . 2 2 4 4 . 4 Max Kills in Single Turn 4 | 1 2 2 1 2 . 4 Gunslinging . | . . . . . . . Exploded 4 | . . 1 . . . 4 Melee 1 | . . . 1 . . . Uniques/NPCs Destroyed . | . . . . . . . Combat | -11 -10 -10 -9 -9 -9 -8 -------- Run | Jun Mat Min Mat Min Exi Min Damage Taken 2088 | 31 368 60 1395 34 . 200 Core 470 | . 50 13 348 16 . 43 Absorbed by Shields . | . . . . . . . Regen/Repaired (Parts) 386 | . 64 . 322 . . . Core Remaining (%) 87 | 100 . 74 . . . . Volleys Fired 726 | 12 629 4 67 5 . 9 Largest 2 | 2 2 2 2 2 . 2 Hottest 136 | 60 80 78 90 136 . 136 Shots Fired 905 | 24 712 7 134 10 . 18 Gun 786 | 24 712 . 50 . . . Cannon 111 | . . 5 84 10 . 12 Launcher 8 | . . 2 . . . 6 Special . | . . . . . . . Kinetic 125 | 12 2 5 106 . . . Thermal 22 | . . . . 10 . 12 Explosive 8 | . . 2 . . . 6 Electromagnetic 750 | 12 710 . 28 . . . Robot Hit Streak 12 | 5 12 9 12 3 . 3 Robot Miss Streak 5 | 2 5 2 4 1 . 2 Penetration Max . | . . . . . . . Secondary Targets . | . . . . . . . Shots Hit Robots 696 | 14 552 5 111 5 . 9 Core Hits 319 | 6 252 4 40 4 . 13 Critical Kills 4 | . 3 . . . . 1 Critical Parts Destroyed 19 | . 16 . 3 . . . Critical Strikes 36 | . 30 . 5 . . 1 Meltdown 1 | . . . . . . 1 Destroy 1 | . . . 1 . . . Blast 1 | . . . 1 . . . Corrupt 11 | . 11 . . . . . Smash 22 | . 19 . 3 . . . Melee Attacks 155 | . 122 . 33 . . . Impact 155 | . 122 . 33 . . . Slashing . | . . . . . . . Piercing . | . . . . . . . Sneak Attacks 86 | . 83 . 3 . . . Combat Hostiles . | . . . . . . . Follow-up Attacks . | . . . . . . . Damage Inflicted 19166 | 213 14704 203 2906 156 . 984 Guns 7148 | 182 6219 . 747 . . . Cannons 1463 | . . 65 1119 156 . 123 Explosions 2540 | 31 1510 138 . . . 861 Melee 8015 | . 6975 . 1040 . . . Ramming . | . . . . . . . Kinetic 1720 | 116 13 65 1526 . . . Thermal 1820 | 31 1510 . . 156 . 123 Explosive 999 | . . 138 . . . 861 Electromagnetic 6612 | 66 6206 . 340 . . . Impact 8015 | . 6975 . 1040 . . . Slashing . | . . . . . . . Piercing . | . . . . . . . Highest Corruption 1 | . . 1 . . . . Average Corruption 1 | . . 1 . . . . Corruption Purged . | . . . . . . . Corruption Blocked . | . . . . . . . Overload Shots . | . . . . . . . Overflow Damage 3867 | 1 3572 . 208 5 . 81 Projectiles 13 | . . . 8 5 . . Explosions 90 | 1 8 . . . . 81 Melee 3764 | . 3564 . 200 . . . Knockbacks 38 | . 25 2 11 . . . Impact 32 | . 25 . 7 . . . Kinetic 5 | . . 1 4 . . . Secondary 1 | . . 1 . . . . Self-Inflicted Damage 51 | 31 20 . . . . . Shots 2 | 1 1 . . . . . Rammed . | . . . . . . . Targets Rammed . | . . . . . . . Kicked . | . . . . . . . Crushed . | . . . . . . . Highest Temperature 270 | 12 270 1 96 180 . 108 Average Temperature 46 | 12 54 1 24 92 . 37 Received Heat Transfer 774 | . 195 18 516 . . 45 Effects 4 | . 4 . . . . . Energy Bleed 1 | . 1 . . . . . Interference 3 | . 3 . . . . . Siege Activations . | . . . . . . . Robots Corrupted 1 | . 1 . . . . . Combat Hostiles 1 | . 1 . . . . . Parts Fried 112 | . 107 . 5 . . . Impact Corruptions 131 | . 122 . 9 . . . Robots Melted 1 | . . . . . . 1 Combat Hostiles 1 | . . . . . . 1 Parts Melted 2 | . 2 . . . . . Heat Transferred 2331 | 50 1800 . . 259 . 222 Parts Sabotaged . | . . . . . . . Parts Stolen . | . . . . . . . Parts Stripped . | . . . . . . . Power Chain Reactions 40 | 1 39 . . . . . Missiles Intercepted . | . . . . . . . Alert | -11 -10 -10 -9 -9 -9 -8 ------- Run | Jun Mat Min Mat Min Exi Min Peak Influence 1621 | 30 1621 751 555 144 . 291 Initial 631 | . 19 631 214 54 . . Average 482 | 13 681 626 255 31 . 80 Maximum Alert Level 5 | . 5 3 2 . . 1 Low Security (%) 45 | 100 36 . 49 100 . 79 Level 1 10 | . 6 . 23 . . 20 Level 2 16 | . 10 66 26 . . . Level 3 7 | . 11 33 . . . . Level 4 17 | . 32 . . . . . Level 5 1 | . 1 . . . . . High Security . | . . . . . . . Max Security . | . . . . . . . Squads Dispatched 9 | . 2 . 6 1 . . Investigation 6 | . 2 . 3 1 . . Extermination . | . . . . . . . Reinforcement 3 | . . . 3 . . . Assault . | . . . . . . . Garrison . | . . . . . . . Intercept . | . . . . . . . Searches Triggered . | . . . . . . . Construction Impeded . | . . . . . . . Haulers Reinforced . | . . . . . . . Active Scanning Responses . | . . . . . . . Cargo Convoy Interrupts . | . . . . . . . Stealth | -11 -10 -10 -9 -9 -9 -8 --------- Run | Jun Mat Min Mat Min Exi Min Distress Signals 5 | . 3 . 2 . . . Communications Jammed . | . . . . . . . Distress Signals . | . . . . . . . Times Spotted 75 | . 13 4 45 4 . 9 Peak Tracking Total 5 | . 5 2 5 3 . 4 Tactical Retreats 4 | . 2 . 2 . . . Traps | -11 -10 -10 -9 -9 -9 -8 ------- Run | Jun Mat Min Mat Min Exi Min Traps Triggered 2 | . . . 2 . . . Indirectly . | . . . . . . . Trap Hack Attempts . | . . . . . . . Triggered . | . . . . . . . Disarmed . | . . . . . . . Reprogrammed . | . . . . . . . Reused . | . . . . . . . Traps Extracted . | . . . . . . . Installed . | . . . . . . . Triggered . | . . . . . . . Most Traps Carried 3 | . . 3 3 3 3 3 Machines | -11 -10 -10 -9 -9 -9 -8 ---------- Run | Jun Mat Min Mat Min Exi Min Machines Disabled 23 | . 20 . 1 . . 2 Max in Single Turn 3 | . 3 . 1 . . 2 Machines Repaired . | . . . . . . . Machines Sabotaged . | . . . . . . . Overloaded Fab Kills . | . . . . . . . Hacking | -11 -10 -10 -9 -9 -9 -8 --------- Run | Jun Mat Min Mat Min Exi Min Machines Accessed 29 | . 11 . 14 3 1 . Terminals 16 | . 8 . 8 . . . Fabricators . | . . . . . . . Repair Stations 3 | . 1 . 2 . . . Recycling Units 4 | . 2 . 2 . . . Scanalyzers 2 | . . . 2 . . . Garrison Access . | . . . . . . . Total Hacks 111 | . 48 . 58 3 2 . Successful 84 | . 33 . 46 3 2 . Failed 25 | . 14 . 11 . . . Catastrophic 3 | . 2 . 1 . . . Database Lockouts 2 | . 1 . 1 . . . Manual 54 | . 29 . 25 . . . Terminals 64 | . 32 . 32 . . . Fabricators . | . . . . . . . Repair Stations 17 | . 4 . 13 . . . Recycling Units 21 | . 12 . 9 . . . Scanalyzers 4 | . . . 4 . . . Garrison Access . | . . . . . . . Terminal Hacks 30 | . 11 . 14 3 2 . Record 2 | . . . . . 2 . Robot Analysis 7 | . 3 . 4 . . . Prototype ID Bank 4 | . 3 . 1 . . . Open Door 3 | . . . . 3 . . Branch Access Points 1 | . . . 1 . . . Terminal Index 2 | . 1 . 1 . . . Alert Level 3 | . 2 . 1 . . . Unreport Threat 3 | . . . 3 . . . Locate Traps 1 | . 1 . . . . . Security Status 1 | . . . 1 . . . Hauler Manifests 2 | . 1 . 1 . . . Zone Layout 1 | . . . 1 . . . Fabricator Hacks . | . . . . . . . Repair Station Hacks 16 | . 4 . 12 . . . Scan Component 8 | . 2 . 6 . . . Repair 8 | . 2 . 6 . . . Recycling Unit Hacks 4 | . 2 . 2 . . . Report Inventory 4 | . 2 . 2 . . . Scanalyzer 2 | . . . 2 . . . Insert Component 1 | . . . 1 . . . Analyze 1 | . . . 1 . . . Garrison Access Hacks . | . . . . . . . Unauthorized Hacks 32 | . 16 . 16 . . . Terminals 18 | . 9 . 9 . . . Track 6 | . 4 . 2 . . . Assimilate 2 | . . . 2 . . . Botnet 8 | . 4 . 4 . . . Operators 2 | . 1 . 1 . . . Fabricators . | . . . . . . . Repair Stations . | . . . . . . . Recycling Units 13 | . 7 . 6 . . . Monitor 2 | . 1 . 1 . . . Reject 4 | . 2 . 2 . . . Recyclers 2 | . 1 . 1 . . . Mask 2 | . 1 . 1 . . . Tunnel 3 | . 2 . 1 . . . Scanalyzers 1 | . . . 1 . . . Extract 1 | . . . 1 . . . Garrison Access . | . . . . . . . Data Cores Recovered 1 | . 1 . . . . . Used 1 | . 1 . . . . . Hacking Detections 23 | . 10 . 13 . . . Full Trace Events 2 | . 1 . 1 . . . Feedback Events . | . . . . . . . Feedback Blocked . | . . . . . . . Robot Schematics Acquired . | . . . . . . . Robots Built . | . . . . . . . Authchips . | . . . . . . . Time . | . . . . . . . Total Robot Build Rating . | . . . . . . . Part Schematics Acquired 9 | . . . 9 . . . Parts Built . | . . . . . . . Authchips . | . . . . . . . Time . | . . . . . . . Total Part Build Rating . | . . . . . . . Parts Repaired 8 | . 2 . 6 . . . Time 251 | . 52 . 199 . . . Parts Recycled . | . . . . . . . Recycled Matter . | . . . . . . . Retrieved Matter . | . . . . . . . Retrieved Components . | . . . . . . . Parts Scanalyzed 1 | . . . 1 . . . Part Schematics Acquired 1 | . . . 1 . . . Parts Damaged 1 | . . . 1 . . . Bothacking | -11 -10 -10 -9 -9 -9 -8 ------------ Run | Jun Mat Min Mat Min Exi Min Used RIF Installer . | . . . . . . . Robots Hacked . | . . . . . . . Non-combat . | . . . . . . . Combat . | . . . . . . . Robot Hacks Applied . | . . . . . . . Relay Couplers Released . | . . . . . . . Fabnet Peak Effective % . | . . . . . . . Robots Rewired . | . . . . . . . Allies Hacked . | . . . . . . . Hacks Repelled . | . . . . . . . Allies | -11 -10 -10 -9 -9 -9 -8 -------- Run | Jun Mat Min Mat Min Exi Min Total Allies 6 | . . 3 1 2 . . Largest Group 3 | . . 3 3 3 3 1 Highest-Rated Group 55 | . . 40 40 55 55 10 Highest-Rated Ally 31 | . . 16 16 31 31 10 Total Orders 16 | . . . 7 5 . 4 STAY 9 | . . . 4 3 . 2 FOLLOW 7 | . . . 3 2 . 2 Ally Attacks 26 | . . 4 22 . . . Total Damage 366 | . . 64 302 . . . Kills 8 | . . 2 6 . . . Allies Corrupted . | . . . . . . . Allies Melted . | . . . . . . . Intel | -11 -10 -10 -9 -9 -9 -8 ------- Run | Jun Mat Min Mat Min Exi Min Robot Analysis Total 6 | . 3 . 3 . . . Derelict Logs Recovered 3 | . . 2 . 1 . . Drone Launches . | . . . . . . . Drone Recoveries . | . . . . . . . Exploration | -11 -10 -10 -9 -9 -9 -8 ------------- Run | Jun Mat Min Mat Min Exi Min Turns Passed 14736 | 166 7827 707 3847 1205 591 393 Spaces Moved 7977 | 96 4050 488 1862 789 434 258 Core 6 | 6 . . . . . . Treads 1 | . . . 1 . . . Legs 282 | 90 192 . . . . . Wheels 7688 | . 3858 488 1861 789 434 258 Hover . | . . . . . . . Flight . | . . . . . . . Fastest Speed 50 | 50 95 130 135 135 135 135 Average Speed 137 | 115 129 135 159 135 135 135 Slowest Speed 480 | 120 190 215 480 135 135 135 Overloaded Moves . | . . . . . . . Propulsion Burnouts . | . . . . . . . Robots Hopped . | . . . . . . . Cave-ins Triggered . | . . . . . . . Exploration Rate (%) 78 | 4 99 99 98 99 86 64 Regions Visited 6 Branch Regions 4 Pre-discovered Areas 6 | . 2 1 1 1 1 . Known Exits Taken 1 | . . . 1 . . . Unknown Exits Taken 5 | 1 1 1 . 1 1 . Scrap Searched 7 | . . 2 . 4 . 1 Spaces Dug 9 | . 3 . 6 . . . Terrain Destroyed 201 | 3 111 14 7 . . 66 Melee 9 | . 3 . 6 . . . Projectile 1 | . . . 1 . . . AOE 191 | 3 108 14 . . . 66 Terrain Rammed . | . . . . . . . Walls Destroyed . | . . . . . . . Machines Disabled . | . . . . . . . Actions | -11 -10 -10 -9 -9 -9 -8 --------- Run | Jun Mat Min Mat Min Exi Min Total 10558 | 124 5718 523 2549 922 439 283 Wait 1472 | . 856 18 499 92 . 7 Move 7971 | 95 4049 487 1861 788 433 258 Hop . | . . . . . . . Pick Up 86 | 9 26 6 31 11 . 3 Fast Attach 28 | 7 4 1 12 2 2 . Attach 27 | . 5 2 13 4 1 2 Detach 4 | . 2 . 1 . 1 . Swap 32 | . 11 4 8 6 . 3 Drop 57 | 1 14 1 24 14 2 1 Fire 726 | 12 629 4 67 5 . 9 Melee 155 | . 122 . 33 . . . Ram . | . . . . . . . Kick . | . . . . . . . Crush . | . . . . . . . Escape Stasis . | . . . . . . . Rewire . | . . . . . . . Trap . | . . . . . . . Miscellaneous . | . . . . . . . Route ------- -11/Junkyard -10/Materials (discovered 4 exits: *Mat x3 / [*Min]) -10/Mines (discovered 2 exits: *Mat x2) -9/Materials (discovered 5 exits: *Mat x3 / *Min x2) -9/Mines (discovered 3 exits: *Mat x2 / *Exi) -9/Exiles -8/Mines (discovered 1 exit: *Mat) History --------- Turn | Location | Event 8 | -11/Junkyard | Discovered new exit (range 15) 167 | -11/Junkyard | Entered Materials 310 | -10/Materials | Build established: Mutant 325 | -10/Materials | Central database locked down 499 | -10/Materials | Discovered new exit (range 10) 642 | -10/Materials | Discovered new exit (range 12) 805 | -10/Materials | Repaired EM Pulse Gun 819 | -10/Materials | Discovered new exit (range 5) 1007 | -10/Materials | Discovered new exit (range 14) 1186 | -10/Materials | Repaired EM Pulse Gun 7994 | -10/Materials | Entered Mines 8022 | -10/Mines | Assisted by bots powering up and referring to "LRC-V3" 8026 | -10/Mines | Met a Derelict bent on vengeance 8113 | -10/Mines | Learned location of Storage (-7) 8119 | -10/Mines | Discovered new exit (range 15) 8153 | -10/Mines | Discovered new exit (range 7) 8231 | -10/Mines | Learned 4 Materials zone layouts 8551 | -10/Mines | Found a hidden stash of uninstalled traps 8701 | -10/Mines | Entered Materials 8701 | -9/Materials | Accompanied by 3 allies 8701 | -9/Materials | Evolved 2 slots: Utility x2 8702 | -9/Materials | Identified exit to Materials 8995 | -9/Materials | Build established: Scavenger-Mutant 9196 | -9/Materials | Discovered exit to Materials (range 8) 10011 | -9/Materials | Repaired Imp. Light Cannon 10096 | -9/Materials | Core integrity fell below 50% 10120 | -9/Materials | Lost 3 parts (1p1n1u) 10230 | -9/Materials | Discovered new exit (range 14) 10469 | -9/Materials | Core integrity fell below 20% 10801 | -9/Materials | Build established: Mutant 11020 | -9/Materials | Discovered new exit (range 16) 11181 | -9/Materials | Discovered exit to Materials (range 8) 11253 | -9/Materials | Central database locked down 11575 | -9/Materials | Repaired Imp. Terrain Scanner 11602 | -9/Materials | Repaired Com. Wheel 11629 | -9/Materials | Repaired Lgt. Treads 11656 | -9/Materials | Repaired Lgt. Armor Plating 11915 | -9/Materials | Repaired Hvy. Ion Engine 11977 | -9/Materials | Identified exit to Mines 12548 | -9/Materials | Entered Mines 12548 | -9/Mines | Accompanied by 1 ally 12555 | -9/Mines | Met a Derelict shopkeep closing up shop 12587 | -9/Mines | Discovered exit to Materials (range 8) 12832 | -9/Mines | Met a Derelict who couldn't figure out how to use a Trap Extractor 13084 | -9/Mines | Learned Materials emergency access door positions 13107 | -9/Mines | A weapon hastily lodged in a ceiling crevice suddenly fell to the ground 13259 | -9/Mines | Deemed a non-threat by the Exiles lab entrance 13259 | -9/Mines | Discovered new exit (range 5) 13468 | -9/Mines | Found the Drone Emporium 13475 | -9/Mines | Found Prototype Device 13518 | -9/Mines | Discovered exit to Materials (range 6) 13753 | -9/Mines | Entered Exiles 13753 | -9/Exiles | Accompanied by 3 allies 13783 | -9/Exiles | Led the pair of lost Derelicts to a safe place 13785 | -9/Exiles | Met 8R-AWN 13806 | -9/Exiles | Met EX-HEX 13863 | -9/Exiles | Met EX-DEC 13868 | -9/Exiles | Learned location of Zion (-6) 13922 | -9/Exiles | Identified Bomb Drone Bay 13936 | -9/Exiles | Discovered new exit (range 11) 14011 | -9/Exiles | Met EX-BIN 14158 | -9/Exiles | Visited The Gauntlet 14344 | -9/Exiles | Entered Mines 14344 | -8/Mines | Accompanied by 1 ally 14730 | -8/Mines | Discovered exit to Materials (range 16) 14737 | -8/Mines | Destroyed by H-55 Commando with Gauss Rifle Last Messages --------------- 14614_ G-50 Soldier destroyed. 14617_ The unstable cave ceiling collapses. 14628_ Acquired Gauss Rifle. 14629_ Acquired 10 matter. 14657_ Wheel destroyed. 14657_ Destroyed Flight Unit. 14657_ Destroyed Lgt. Ion Engine. 14657_ S-10 Pest destroyed. 14657_ Core Extractor disabled. 14657_ S-10 Pest destroyed. 14657_ Core Extractor disabled. 14657_ S-10 Pest destroyed. 14658_ Technician 2a reports 0b10 security level has risen to 1. 14665_ Acquired 5 matter. 14667_ Acquired 8 matter. 14669_ Acquired 1 matter. 14671_ Acquired 2 matter. 14699_ Acquired Recoil Stabilizer. 14730_ EXIT=FOUND: MATERIALS 14737_ Penetrated by Slug. Map ----- +----------------------------------------------------+ | | | | | | | | | | | | | | | | | | | | | | | | | | | | | | | | | | | | | ?????????????????????????????????????????????????? | | ??####?????????????????????###???????????????????? | | ?## =##???????????????????# ##??????????????????? | | ?# ##????????????????## ##?????????????????? | | ?# #???????????????## ### ##???????????? | | ?# #?????????####### #???????????? | | ?# /########### < #???????????? | | ??#* o @ #???????????? | | ?## ########### ###### #???????????? | | ## ##??????#### #????# ##???????????? | | # #???????# #????# ##????????????? | | ##???????# ####???? ###?????????????? | | ############????????? ##???????????????? | | ##?# ????????? ###????????????????? | | #??# """ """ ""??????? ##??????????????????? | | #??# """ """ ""??????? #???????????????????? | | # #?## "" """ """??????# #???????????????????? | | # ### ???????? ???????????????????? | | # ## """ "????????? ???????????????????? | | # # = """ ""???????? h##??????????????????? | | # [ = """ """ #????? ##???????????????????? | | ### = #????? ##????????????????????? | | ??## [ ##########????? ??????????????????????? | | ???## = #??????????????????????????????????????? | | ????### ##??????????????????????????????????????? | | ??????# #???????????????????????????????????????? | | ####??# ###??###????????????????????????????????? | | ??# #?? #######??????????????????????????? | | ? #??#### #?## ### ?????????????????????? | | ?# #????## ### ?????????????????????? | | ?# ###### # ??????????????????????? | | ?# # #????????????????????? | +----------------------------------------------------+ Best States ------------- Heat Dissipation 42 Energy Generation 14 Energy Capacity 280 Matter Stores 300 Matter Capacity 300 Sight Range 16 Terrain Scan Range 16 Terrain Scan Density 10 Armor Coverage 150 Evasion (%) 55 Targeting Accuracy 8 Recoil Reduction 1 Force Boost 20 Offensive Hacking 10 Trap Extractor Capacity 6 Item Schematics ----------------- Adv. Targeting Computer | -9/Materials | Scanalyzed Imp. Ion Engine | -9/Materials | Extracted Autogun | -9/Materials | Extracted ECM Suite | -9/Materials | Extracted Assault Rifle | -9/Materials | Extracted Lrg. Battery | -9/Materials | Extracted VTOL Module | -9/Materials | Extracted Signal Interpreter | -9/Materials | Extracted Hvy. EM Pulse Gun | -9/Materials | Extracted Robot Schematics ------------------ None Fabricated ------------ Nothing Alien Tech Used ----------------- None Achievements -------------- None Challenges ------------ None Game ------ Seed ReactionThrusterNanovents Manual? 0 Play Time 01:54:27 Cumulative 647.0 hours Start 2023.04.23 @ 13:54:51 End 2023.04.24 @ 00:17:54 Sessions 1 Manual Loads 0 Difficulty Rogue Special Mode None Game No. 436 Rogue 436 Adventurer 0 Explorer 0 Win Type - Total 1 Types 1/0/0/0/0/0/0/0/0 Lore% 71 Gallery% 79 Achievement% 60 Wizard Run 0 Options --------- ASCII 0 Keyboard 0 Movement Mouse Keybinds 0 Fullscreen 1 Font 16/SmallcapsGlow Map View 75x55 Tactical HUD 1 Map Filters NONE Filters NONE Steam 1 RUN: 2927c26c-2f87-4e8f-a8c5-19b386137e2c